fUST/lending_fUST_20260316
["ID","MTS","AMOUNT","RATE_DAILY","PERIOD"]
[408433882,1773610238480,-500.0,7.563e-05,2]
[408433884,1773610238489,-500.0,7.563e-05,2]
[408433886,1773610238498,-500.0,7.563e-05,2]
[408433888,1773610238508,-500.0,7.563e-05,2]
[408433890,1773610238517,-500.0,7.563e-05,2]
[408433892,1773610238526,-500.0,7.563e-05,2]
[408433894,1773610238537,-500.0,7.563e-05,2]
[408433895,1773610238547,-500.0,7.563e-05,2]
[408433897,1773610238556,-500.0,7.563e-05,2]
[408433900,1773610238566,-416.44589259,7.563e-05,2]
[408433902,1773610238576,-500.0,7.563e-05,2]
[408433903,1773610238585,-500.0,7.563e-05,2]
[408433905,1773610238595,-500.0,7.563e-05,2]
[408433907,1773610238604,-500.0,7.563e-05,2]
[408433910,1773610238614,-500.0,7.563e-05,2]
[408433912,1773610238623,-500.0,7.563e-05,2]
[408433914,1773610238632,-500.0,7.563e-05,2]
[408433916,1773610238641,-500.0,7.563e-05,2]
[408433917,1773610238651,-500.0,7.563e-05,2]
[408433920,1773610238661,-500.0,7.563e-05,2]
[408433922,1773610238670,-500.0,7.563e-05,2]
[408433924,1773610238679,-500.0,7.563e-05,2]
[408433926,1773610238689,-500.0,7.563e-05,2]
[408433928,1773610238698,-500.0,7.563e-05,2]
[408433929,1773610238707,-500.0,7.563e-05,2]
[408433931,1773610238716,-500.0,7.563e-05,2]
[408433933,1773610238726,-500.0,7.563e-05,2]
[408433936,1773610238735,-500.0,7.563e-05,2]
[408433938,1773610238746,-500.0,7.563e-05,2]
[408433940,1773610238755,-500.0,7.563e-05,2]
[408433942,1773610238764,-500.0,7.563e-05,2]
[408433944,1773610238774,-500.0,7.563e-05,2]
[408433946,1773610238784,-500.0,7.563e-05,2]
[408433948,1773610238796,-500.0,7.563e-05,2]
[408433950,1773610238805,-523.11565712,7.563e-05,2]
[408433952,1773610238815,-500.0,7.563e-05,2]
[408433954,1773610238825,-500.0,7.563e-05,2]
[408433956,1773610238835,-500.0,7.563e-05,2]
[408433957,1773610238844,-500.0,7.563e-05,2]
[408433959,1773610238854,-500.0,7.563e-05,2]
[408433961,1773610238863,-500.0,7.563e-05,2]
[408433963,1773610238874,-500.0,7.563e-05,2]
[408433965,1773610238883,-500.0,7.563e-05,2]
[408433967,1773610238892,-500.0,7.563e-05,2]
[408433969,1773610238903,-500.0,7.563e-05,2]
[408433971,1773610238914,-500.0,7.563e-05,2]
[408433972,1773610238924,-500.0,7.563e-05,2]
[408433973,1773610238933,-500.0,7.563e-05,2]
[408433974,1773610238942,-500.0,7.563e-05,2]
[408433975,1773610238952,-500.0,7.563e-05,2]
[408433976,1773610238960,-500.0,7.563e-05,2]
[408433977,1773610238970,-500.0,7.563e-05,2]
[408433978,1773610238980,-500.0,7.563e-05,2]
[408433979,1773610238991,-500.0,7.563e-05,2]
[408433980,1773610239001,-354.32212088,7.563e-05,2]
[408433981,1773610239011,-500.0,7.563e-05,2]
[408433982,1773610239021,-500.0,7.563e-05,2]
[408433983,1773610239031,-500.0,7.563e-05,2]
[408433984,1773610239042,-500.0,7.563e-05,2]
[408433985,1773610239052,-500.0,7.563e-05,2]
[408433986,1773610239061,-500.0,7.563e-05,2]
[408433987,1773610239072,-500.0,7.563e-05,2]
[408433988,1773610239083,-500.0,7.563e-05,2]
[408433989,1773610239094,-500.0,7.563e-05,2]
[408433990,1773610239105,-500.0,7.563e-05,2]
[408433991,1773610239115,-500.0,7.563e-05,2]
[408433992,1773610239125,-500.0,7.563e-05,2]
[408433993,1773610239134,-500.0,7.563e-05,2]
[408433994,1773610239143,-500.0,7.563e-05,2]
[408433995,1773610239154,-500.0,7.563e-05,2]
[408433996,1773610239163,-500.0,7.563e-05,2]
[408433997,1773610239173,-500.0,7.563e-05,2]
[408433998,1773610239183,-500.0,7.563e-05,2]
[408433999,1773610239192,-500.0,7.563e-05,2]
[408434000,1773610239202,-500.0,7.563e-05,2]
[408434001,1773610239212,-500.0,7.563e-05,2]
[408434002,1773610239223,-430.92289471,7.563e-05,2]
[408434008,1773610240443,-69.07710529,7.563e-05,2]
[408434009,1773610240452,-500.0,7.563e-05,2]
[408434010,1773610240461,-500.0,7.563e-05,2]
[408434011,1773610240471,-500.0,7.563e-05,2]
[408434012,1773610240481,-500.0,7.563e-05,2]
[408434013,1773610240490,-500.0,7.563e-05,2]
[408434014,1773610240499,-443.84103045,7.563e-05,2]
[408434015,1773610240515,-51.87517984,7.563e-05,2]
[408434016,1773610240525,-442.59391363,7.563e-05,2]
[408434017,1773610240535,-57.40608637,7.563e-05,2]
[408434018,1773610240545,-500.0,7.563e-05,2]
[408434019,1773610240554,-500.0,7.563e-05,2]
[408434020,1773610240563,-500.0,7.563e-05,2]
[408434021,1773610240573,-500.0,7.563e-05,2]
[408434022,1773610240582,-271.78809343,7.563e-05,2]
[408434027,1773610243207,-228.21190657,7.563e-05,2]
[408434028,1773610243217,-500.0,7.563e-05,2]
[408434029,1773610243226,-500.0,7.563e-05,2]
[408434030,1773610243236,-500.0,7.563e-05,2]
[408434031,1773610243246,-500.0,7.563e-05,2]
[408434032,1773610243258,-500.0,7.563e-05,2]
[408434033,1773610243268,-500.0,7.563e-05,2]
[408434034,1773610243277,-500.0,7.563e-05,2]
[408434035,1773610243288,-500.0,7.563e-05,2]
[408434036,1773610243299,-500.0,7.563e-05,2]
[408434037,1773610243309,-500.0,7.563e-05,2]
[408434038,1773610243319,-500.0,7.563e-05,2]
[408434039,1773610243330,-500.0,7.563e-05,2]
[408434040,1773610243339,-500.0,7.563e-05,2]
[408434041,1773610243348,-500.0,7.563e-05,2]
[408434042,1773610243358,-500.0,7.563e-05,2]
[408434043,1773610243367,-225.30553454,7.563e-05,2]
[408434044,1773610243384,-274.69446546,7.563e-05,2]
[408434045,1773610243396,-500.0,7.563e-05,2]
[408434046,1773610243406,-500.0,7.563e-05,2]
[408434047,1773610243416,-500.0,7.563e-05,2]
[408434048,1773610243427,-500.0,7.563e-05,2]
[408434049,1773610243437,-500.0,7.563e-05,2]
[408434050,1773610243449,-500.0,7.563e-05,2]
[408434051,1773610243460,-500.0,7.563e-05,2]
[408434052,1773610243469,-500.0,7.563e-05,2]
[408434053,1773610243480,-500.0,7.563e-05,2]
[408434054,1773610243489,-500.0,7.563e-05,2]
[408434055,1773610243499,-500.0,7.563e-05,2]
[408434056,1773610243509,-500.0,7.563e-05,2]
[408434057,1773610243519,-538.45005469,7.563e-05,2]
[408434058,1773610243530,-500.0,7.563e-05,2]
[408434059,1773610243539,-500.0,7.563e-05,2]
[408434060,1773610243549,-500.0,7.563e-05,2]
[408434061,1773610243558,-500.0,7.563e-05,2]
[408434062,1773610243567,-500.0,7.563e-05,2]
[408434063,1773610243576,-500.0,7.563e-05,2]
[408434064,1773610243586,-500.0,7.563e-05,2]
[408434065,1773610243595,-500.0,7.563e-05,2]
[408434066,1773610243605,-500.0,7.563e-05,2]
[408434067,1773610243614,-500.0,7.563e-05,2]
[408434068,1773610243623,-500.0,7.563e-05,2]
[408434069,1773610243633,-500.0,7.563e-05,2]
[408434070,1773610243642,-500.0,7.563e-05,2]
[408434071,1773610243651,-500.0,7.563e-05,2]
[408434072,1773610243661,-500.0,7.563e-05,2]
[408434073,1773610243670,-500.0,7.563e-05,2]
[408434074,1773610243679,-500.0,7.563e-05,2]
[408434075,1773610243689,-500.0,7.563e-05,2]
[408434076,1773610243699,-500.0,7.563e-05,2]
[408434077,1773610243708,-500.0,7.563e-05,2]
[408434078,1773610243718,-500.0,7.563e-05,2]
[408434079,1773610243727,-500.0,7.563e-05,2]
[408434080,1773610243736,-500.0,7.563e-05,2]
[408434081,1773610243746,-500.0,7.563e-05,2]
[408434082,1773610243758,-500.0,7.563e-05,2]
[408434083,1773610243768,-500.0,7.563e-05,2]
[408434084,1773610243777,-500.0,7.563e-05,2]
[408434085,1773610243787,-500.0,7.563e-05,2]
[408434086,1773610243796,-500.0,7.563e-05,2]
[408434087,1773610243805,-500.0,7.563e-05,2]
[408434088,1773610243816,-500.0,7.563e-05,2]
[408434089,1773610243826,-500.0,7.563e-05,2]
[408434090,1773610243837,-500.0,7.563e-05,2]
[408434091,1773610243846,-500.0,7.563e-05,2]
[408434092,1773610243857,-500.0,7.563e-05,2]
[408434093,1773610243867,-500.0,7.563e-05,2]
[408434094,1773610243876,-500.0,7.563e-05,2]
[408434095,1773610243885,-349.99999999,7.563e-05,2]
[408434096,1773610243895,-500.0,7.563e-05,2]
[408434097,1773610243904,-500.0,7.563e-05,2]
[408434098,1773610243913,-500.0,7.563e-05,2]
[408434099,1773610243923,-500.0,7.563e-05,2]
[408434100,1773610243932,-500.0,7.563e-05,2]
[408434101,1773610243941,-50000.0,7.564e-05,2]
[408434102,1773610243950,-300.0,7.721e-05,2]
[408434103,1773610243961,-300.0,7.721e-05,2]
[408434104,1773610243970,-300.0,7.721e-05,2]
[408434105,1773610243979,-300.0,7.721e-05,2]
[408434106,1773610243988,-300.0,7.721e-05,2]
[408434107,1773610243998,-300.0,7.721e-05,2]
[408434108,1773610244007,-300.0,7.721e-05,2]
[408434109,1773610244016,-300.0,7.721e-05,2]
[408434110,1773610244026,-300.0,7.721e-05,2]
[408434111,1773610244036,-300.0,7.721e-05,2]
[408434112,1773610244046,-300.0,7.721e-05,2]
[408434113,1773610244055,-300.0,7.721e-05,2]
[408434114,1773610244066,-300.0,7.721e-05,2]
[408434115,1773610244076,-300.0,7.721e-05,2]
[408434116,1773610244085,-300.0,7.721e-05,2]
[408434117,1773610244094,-600.0,7.721e-05,2]
[408434118,1773610244104,-500.0,7.73e-05,2]
[408434119,1773610244114,-720.0,8.493e-05,2]
[408434120,1773610244123,-864.0,9.342e-05,2]
[408434121,1773610244132,-1000.0,0.00010277,2]
[408434122,1773610244141,-1000.0,0.00011304,2]
[408434123,1773610244151,-244.0,0.00011304,2]
[408434124,1773610244160,-1000.0,0.00012435,2]
[408434125,1773610244169,-492.0,0.00012435,2]
[408434126,1773610244178,-1000.0,0.00013678,2]
[408434127,1773610244187,-791.0,0.00013678,2]
[408434128,1773610244197,-1000.0,0.00013699,2]
[408434129,1773610244206,-219.0,0.00014247,3]
[408434130,1773610244215,-152.59166233,0.000149,2]
[408434131,1773610244225,-270.83333333,0.00015,2]
[408434132,1773610244234,-9864.0,0.00015,2]
[408434133,1773610244243,-2526.0,0.00015,2]
[408434134,1773610244253,-1000.0,0.00015046,2]
[408434135,1773610244262,-1000.0,0.00015046,2]
[408434136,1773610244271,-161.0,0.00015342,3]
[408434137,1773610244282,-2000.0,0.00015494,7]
[408434138,1773610244293,-5000.0,0.0001564,2]
[408434139,1773610244303,-162.0,0.00016438,3]
[408434140,1773610244313,-1000.0,0.0001655,2]
[408434141,1773610244323,-1000.0,0.0001655,2]
[408434142,1773610244332,-579.0,0.0001655,2]
[408434143,1773610244341,-338.0,0.00016838,2]
[408434144,1773610244351,-151.0,0.00016986,2]
[408434145,1773610244361,-389.0,0.00016995,2]
[408434146,1773610244371,-505.0,0.00017165,2]
[408434147,1773610244383,-151.0,0.0001726,2]
[408434148,1773610244397,-2000.0,0.00017307,7]
[408434149,1773610244407,-151.0,0.00017534,2]
[408434150,1773610244417,-164.0,0.00017534,3]
[408434151,1773610244429,-151.0,0.00017808,2]
[408434152,1773610244439,-820.95030766,0.00018,120]
[408434153,1773610244451,-1368.51916465,0.00018,120]
[408434154,1773610244461,-151.0,0.00018082,2]
[408434155,1773610244470,-513.0,0.00018205,2]
[408434156,1773610244479,-151.0,0.00018356,2]
[408434157,1773610244489,-151.0,0.0001863,2]
[408434158,1773610244498,-165.0,0.0001863,3]
[408434159,1773610244509,-1659.30129943,0.00018768,2]
[408434160,1773610244521,-729.67770619,0.00018768,2]
[408434165,1773610246204,-2611.02099438,0.00018768,2]
[408434166,1773610246215,-6666.76772114,0.00018768,5]
[408434167,1773610246262,-2786.23227886,0.00018768,5]
[408434168,1773610246272,-654.23600399,0.00018816,2]
[408434169,1773610246282,-151.0,0.00018904,2]
[408434170,1773610246292,-952.32693567,0.00019,2]
[408434171,1773610262928,-300.0,7.562e-05,2]
[408434172,1773610262956,-500.0,7.563e-05,2]
[408434173,1773610262978,-300.0,7.563e-05,2]
[408434174,1773610262989,-500.0,7.563e-05,2]
[408434175,1773610263003,-335.71428571,7.563e-05,2]
[408434176,1773610263012,-448.88863934,7.563e-05,2]
[408434177,1773610802431,171.34,2e-05,2]
[408434205,1773611432055,-367.38335282,7.12e-05,2]
[408434207,1773611432067,-646.40526181,7.12e-05,2]
[408434213,1773611432115,-673.41,7.12e-05,2]
[408434216,1773611432128,-501.0,7.12e-05,2]
[408434218,1773611432139,-2811.80138537,7.12e-05,2]
[408434220,1773611432148,-522.0,7.192e-05,2]
[408434222,1773611432158,-1559.74144953,7.397e-05,2]
[408434224,1773611432167,-1200.0,7.496e-05,2]
[408434226,1773611432177,-55.14550328,7.497e-05,2]
[408434228,1773611432192,-3039.97725183,7.497e-05,2]
[408434230,1773611432201,-600.0,7.714e-05,2]
[408434233,1773611432211,-3366.83191782,7.846e-05,2]
[408434235,1773611432221,-720.0,8.485e-05,2]
[408434237,1773611432230,-3619.19614925,9.269e-05,2]
[408434239,1773611432239,-864.0,9.333e-05,2]
[408434241,1773611432249,-1000.0,0.00010267,2]
[408434243,1773611432258,-3382.39284229,0.00010267,2]
[408434245,1773611432269,-3871.56038082,0.00010692,2]
[408434247,1773611432279,-161.70558133,0.000109,2]
[408434249,1773611432288,-181.32986611,0.000109,2]
[408434251,1773611432298,-185.53865627,0.000109,2]
[408434253,1773611432307,-187.49880525,0.000109,2]
[408434255,1773611432316,-215.804,0.00011089,2]
[408434257,1773611432325,-500.0,0.00011089,2]
[408434259,1773611432334,-260.39075419,0.00011091,2]
[408434261,1773611432344,-64338.01000112,0.00011092,2]
[408434263,1773611432355,-1125.98825827,0.00011092,2]
[408434388,1773611438368,-1152.14854256,0.00010978,2]
[408434389,1773611438380,-1321.8647845,0.00010978,2]
[408434390,1773611438391,-2525.98667294,0.00010978,2]
[408434391,1773611438401,-500.0,0.00011089,2]
[408434392,1773611438411,-70.07486019,0.00011089,2]
[408434393,1773611438422,-311.62995794,0.00011089,2]
[408434404,1773611440642,-118.29518187,0.00011089,2]
[408434405,1773611440651,-279.71034104,0.00011089,2]
[408434430,1773611443323,-220.28965896,0.00011089,2]
[408434431,1773611443333,-214.71034104,0.00011089,2]
[408434432,1773611443344,-31.68029424,0.00011089,2]
[408434433,1773611443352,-500.0,0.00011089,2]
[408434434,1773611443362,-500.0,0.00011089,2]
[408434435,1773611443371,-500.0,0.00011089,2]
[408434436,1773611443381,-500.0,0.00011089,2]
[408434437,1773611443391,-500.0,0.00011089,2]
[408434438,1773611443400,-500.0,0.00011089,2]
[408434439,1773611443409,-500.0,0.00011089,2]
[408434440,1773611443418,-500.0,0.00011089,2]
[408434441,1773611443427,-500.0,0.00011089,2]
[408434442,1773611443436,-103.67126237,0.00011089,2]
[408434443,1773611443447,-396.32873763,0.00011089,2]
[408434444,1773611443457,-239.31561189,0.00011089,2]
[408434445,1773611443466,-500.0,0.00011089,2]
[408434446,1773611443475,-500.0,0.00011089,2]
[408434447,1773611443484,-500.0,0.00011089,2]
[408434448,1773611443494,-500.0,0.00011089,2]
[408434449,1773611443503,-500.0,0.00011089,2]
[408434450,1773611443512,-500.0,0.00011089,2]
[408434451,1773611443521,-500.0,0.00011089,2]
[408434452,1773611443531,-500.0,0.00011089,2]
[408434453,1773611443541,-358.10322591,0.00011089,2]
[408434454,1773611443550,-500.0,0.00011089,2]
[408434455,1773611443559,-500.0,0.00011089,2]
[408434456,1773611443568,-500.0,0.00011089,2]
[408434457,1773611443577,-500.0,0.00011089,2]
[408434458,1773611443586,-500.0,0.00011089,2]
[408434460,1773611443595,-500.0,0.00011089,2]
[408434461,1773611443605,-500.0,0.00011089,2]
[408434463,1773611443614,-500.0,0.00011089,2]
[408434465,1773611443623,-500.0,0.00011089,2]
[408434466,1773611443633,-500.0,0.00011089,2]
[408434467,1773611443642,-500.0,0.00011089,2]
[408434468,1773611443651,-500.0,0.00011089,2]
[408434469,1773611443660,-500.0,0.00011089,2]
[408434470,1773611443669,-500.0,0.00011089,2]
[408434471,1773611443678,-500.0,0.00011089,2]
[408434472,1773611443687,-500.0,0.00011089,2]
[408434473,1773611443696,-500.0,0.00011089,2]
[408434474,1773611443705,-500.0,0.00011089,2]
[408434475,1773611443714,-500.0,0.00011089,2]
[408434476,1773611443723,-500.0,0.00011089,2]
[408434477,1773611443733,-500.0,0.00011089,2]
[408434478,1773611443742,-500.0,0.00011089,2]
[408434479,1773611443752,-500.0,0.00011089,2]
[408434480,1773611443766,-500.0,0.00011089,2]
[408434481,1773611443776,-500.0,0.00011089,2]
[408434482,1773611443785,-500.0,0.00011089,2]
[408434483,1773611443794,-500.0,0.00011089,2]
[408434484,1773611443805,-255.59704908,0.00011089,2]
[408434485,1773611443817,-244.40295092,0.00011089,2]
[408434486,1773611443826,-500.0,0.00011089,2]
[408434487,1773611443836,-500.0,0.00011089,2]
[408434488,1773611443845,-500.0,0.00011089,2]
[408434489,1773611443855,-500.0,0.00011089,2]
[408434490,1773611443865,-500.0,0.00011089,2]
[408434491,1773611443875,-488.40692003,0.00011089,2]
[408434492,1773611443884,-500.0,0.00011089,2]
[408434493,1773611443893,-500.0,0.00011089,2]
[408434494,1773611443903,-500.0,0.00011089,2]
[408434495,1773611443913,-500.0,0.00011089,2]
[408434496,1773611443923,-500.0,0.00011089,2]
[408434497,1773611443934,-19324.04896957,0.00011092,2]
[408434498,1773611443956,-4640.01197933,0.00011092,2]
[408434505,1773611446268,-2170.56619972,0.00011092,2]
[408434517,1773612002494,154.38,2e-05,2]
[408434518,1773612002794,154.38,2e-05,2]
[408434519,1773612003096,154.38,2e-05,2]
[408434520,1773612003589,154.38,2e-05,2]
[408434524,1773612023833,-154.38,2.1e-05,2]
[408434525,1773612023861,-154.38,2.1e-05,2]
[408434526,1773612023891,-154.38,2.1e-05,2]
[408434527,1773612023919,-154.38,2.1e-05,2]
[408434528,1773612023951,-154.38,2.1e-05,2]
[408434529,1773612023978,-154.38,2.1e-05,2]
[408434530,1773612024006,-154.38,2.2e-05,2]
[408434531,1773612024035,-154.38,2.2e-05,2]
[408434532,1773612024060,-154.38,2.2e-05,2]
[408434533,1773612024088,-154.38,2.2e-05,2]
[408434534,1773612078915,-2760.34990133,9.807e-05,2]
[408434535,1773612108048,-1543.8,9.807e-05,2]
[408434577,1773612632262,-3597.65222752,9.234e-05,2]
[408434580,1773612632275,-1402.34777248,9.234e-05,2]
[408434582,1773612632285,-12.9503311,9.327e-05,2]
[408434584,1773612632296,-598.22725985,9.327e-05,2]
[408434586,1773612632305,-327.10905511,9.402e-05,2]
[408434589,1773612632319,-1260.60491267,9.402e-05,2]
[408434722,1773612638382,-1577.58650617,9.308e-05,2]
[408434723,1773612638429,-1325.38791444,9.308e-05,2]
[408434725,1773612638438,-784.62697655,9.402e-05,2]
[408434727,1773612638448,-1200.0,9.5e-05,2]
[408434728,1773612638457,-300.0,9.501e-05,2]
[408434729,1773612638466,-5165.05237094,9.502e-05,2]
[408434730,1773612638475,-5735.18441308,9.602e-05,2]
[408434731,1773612638485,-5839.31757851,9.702e-05,2]
[408434732,1773612638494,-6305.31645533,9.802e-05,2]
[408434733,1773612638503,-6875.44849758,9.902e-05,2]
[408434734,1773612638516,-218.9035945,0.00010006,2]
[408434735,1773612638525,-300.0,0.00010451,2]
[408434736,1773612638535,-500.0,0.00010871,2]
[408434737,1773612638544,-500.0,0.00010871,2]
[408434738,1773612638554,-500.0,0.00010871,2]
[408434739,1773612638563,-206.45591399,0.00010871,2]
[408434740,1773612638572,-500.0,0.00010871,2]
[408434741,1773612638582,-500.0,0.00010871,2]
[408434742,1773612638591,-500.0,0.00010871,2]
[408434743,1773612638600,-332.04521334,0.00010871,2]
[408434744,1773612638610,-500.0,0.00010871,2]
[408434745,1773612638623,-500.0,0.00010871,2]
[408434746,1773612638633,-500.0,0.00010871,2]
[408434747,1773612638642,-273.93156118,0.00010871,2]
[408434748,1773612638652,-500.0,0.00010873,2]
[408434749,1773612638661,-500.0,0.00010873,2]
[408434750,1773612638670,-500.0,0.00010873,2]
[408434751,1773612638680,-500.0,0.00010873,2]
[408434752,1773612638689,-500.0,0.00010873,2]
[408434753,1773612638699,-500.0,0.00010873,2]
[408434754,1773612638708,-13198.64973339,0.00010873,2]
[408434755,1773612638718,-182.27352793,0.0001088,2]
[408434756,1773612638727,-69031.98755153,0.00010881,2]
[408434760,1773612640731,-302.91544039,0.00010772,2]
[408434761,1773612640741,-140.01492818,0.00010881,2]
[408434762,1773612640788,-1125.84945892,0.00010881,2]
[408434769,1773612643440,-32604.7428748,0.00010881,2]
[408434771,1773612643451,-907437.09351297,0.00010881,2]
[408434772,1773612643551,-2107.64814455,0.00010881,2]
[408434773,1773612643561,-660.112334,0.00010881,2]
[408434802,1773612646494,-893.57721269,0.00010772,2]
[408434803,1773612646503,-5842.03671395,0.00010881,2]
[408434809,1773612646552,-65366.68819595,0.00010881,2]
[408434811,1773612646563,-16227.28187301,0.00010881,2]
[408434829,1773612646728,-15253.56021197,0.00010881,2]
[408434850,1773613202304,166.34,2e-05,2]
[408434851,1773613824436,-4304.14990133,2.05e-05,2]
[408434872,1773613832437,-695.85009867,2.05e-05,2]
[408434874,1773613832448,-2027.17101388,2.071e-05,2]
[408434877,1773613832463,-1502.32845234,2.071e-05,2]
[408434879,1773613832472,-1113.0,2.091e-05,2]
[408434881,1773613832482,-166.34,2.2e-05,2]
[408434883,1773613832493,-300.0,8.591e-05,2]
[408434886,1773613832502,-98.93077993,8.591e-05,2]
[408434889,1773613832514,-201.06922007,8.591e-05,2]
[408434892,1773613832526,-187.632526,8.681e-05,2]
[408434895,1773613832535,-177.17425393,9.45e-05,2]
[408434898,1773613832547,-62.82574607,9.45e-05,2]
[408434901,1773613832556,-420.0,9.45e-05,2]
[408434903,1773613832565,-188.11425393,9.501e-05,2]
[408434906,1773613832576,-175.65591954,9.501e-05,2]
[408434909,1773613832586,-50535.1267522,9.502e-05,2]
[408435040,1773613838578,-31877.47375963,9.502e-05,2]
[408435041,1773613838639,-3528.97131064,9.502e-05,2]
[408435056,1773613841445,-876.23651836,9.407e-05,2]
[408435057,1773613841460,-541.62104869,9.407e-05,2]
[408435066,1773613843872,-1041.66666667,9.407e-05,2]
[408435067,1773613843885,-1801.41093038,9.407e-05,2]
[408435093,1773613846624,-9856.03930195,9.407e-05,2]
[408435096,1773613846637,-44382.52152808,9.407e-05,2]
[408436675,1773614403701,172.95,2e-05,2]
[408436699,1773615031632,-5000.0,8.575e-05,2]
[408436700,1773615031642,-302.73848456,8.662e-05,2]
[408436701,1773615031651,-1200.0,9.099e-05,2]
[408436703,1773615031661,-159.70880028,9.1e-05,2]
[408436705,1773615031670,-175.98316504,9.1e-05,2]
[408436707,1773615031679,-179.47311473,9.1e-05,2]
[408436709,1773615031689,-33.09643539,9.1e-05,2]
[408436710,1773615031700,-148.00751236,9.1e-05,2]
[408436711,1773615031710,-300.0,9.182e-05,2]
[408436712,1773615031720,-300.0,9.182e-05,2]
[408436713,1773615031729,-300.0,9.182e-05,2]
[408436714,1773615031738,-300.0,9.182e-05,2]
[408436715,1773615031748,-500.0,9.183e-05,2]
[408436716,1773615031758,-500.0,9.183e-05,2]
[408436717,1773615031768,-483.8829318,9.183e-05,2]
[408436718,1773615031777,-500.00841163,9.183e-05,2]
[408436719,1773615031786,-153.68343244,9.2e-05,2]
[408436720,1773615031796,-159.86202116,9.2e-05,2]
[408436721,1773615031807,-161.80180776,9.2e-05,2]
[408436722,1773615031816,-161.18625364,9.2e-05,2]
[408436723,1773615031826,-618.46754091,9.2e-05,2]
[408436724,1773615031835,-1516.09600551,9.2e-05,2]
[408436725,1773615031850,-1362.24871624,9.2e-05,2]
[408436726,1773615031860,-1560.14914158,9.2e-05,2]
[408436727,1773615031870,-8409.45985382,9.207e-05,2]
[408436737,1773615037748,-10414.9999996,9.207e-05,2]
[408436738,1773615037759,-223561.4743349,9.207e-05,2]
[408436739,1773615037863,-439.30866558,9.207e-05,2]
[408436752,1773615040547,-726.05123215,9.207e-05,2]
[408436753,1773615040558,-518.68554657,9.207e-05,2]
[408436754,1773615040577,-1226.30066951,9.207e-05,2]
[408436755,1773615040588,-1061.69153269,9.207e-05,2]
[408436771,1773615042840,-418.93857618,9.207e-05,2]
[408436772,1773615042899,-396922.80443755,9.207e-05,2]
[408436773,1773615042910,-21713.99327878,9.207e-05,2]
[408436774,1773615042922,-250316.6690435,9.207e-05,2]
[408436782,1773615045864,-12910.15621236,9.207e-05,2]
[408436783,1773615045925,-366.0,9.207e-05,2]
[408436784,1773615045937,-329317.07719272,9.207e-05,2]
[408436788,1773615602874,172.95,2e-05,2]
[408436789,1773615662247,-2078.78015872,7.723e-05,2]
[408436792,1773615845775,500.0,2.001e-05,2]
[408436793,1773615890899,379.0,2.001e-05,2]
[408436832,1773616231726,-282.252,7.272e-05,2]
[408436840,1773616231786,-67.06430847,7.272e-05,2]
[408436842,1773616231795,-5000.0,7.345e-05,2]
[408436844,1773616231804,-4077.43251475,8.104e-05,2]
[408436846,1773616231814,-300.0,8.195e-05,2]
[408436848,1773616231823,-4440.8288334,8.203e-05,2]
[408436850,1773616231832,-2873.02459529,8.204e-05,2]
[408436852,1773616231844,-599.35241797,8.204e-05,2]
[408437022,1773616237898,-4770.28265047,8.204e-05,2]
[408437023,1773616237908,-10035.21961701,8.404e-05,2]
[408437024,1773616237918,-10209.17389212,8.504e-05,2]
[408437025,1773616237927,-11192.43100635,8.711e-05,2]
[408437026,1773616237936,-221.02802099,8.9e-05,2]
[408437027,1773616237946,-377.31288265,8.9e-05,2]
[408437028,1773616237955,-339.2773146,8.9e-05,2]
[408437029,1773616237964,-364.77541977,8.9e-05,2]
[408437030,1773616237973,-164.59235627,8.9e-05,2]
[408437032,1773616237982,-196.74552796,8.9e-05,2]
[408437033,1773616237991,-189.03985443,8.9e-05,2]
[408437034,1773616238000,-194.28472105,8.9e-05,2]
[408437035,1773616238009,-201.44640026,8.9e-05,2]
[408437036,1773616238019,-287.2829453,8.9e-05,2]
[408437037,1773616238028,-305.75931346,8.9e-05,2]